fUSD/lending_fUSD_20241020
["ID","MTS","AMOUNT","RATE_DAILY","PERIOD"]
[340521209,1729414233074,-150.0,0.00023781,2]
[340521210,1729414233083,-150.0,0.00023781,2]
[340521211,1729414233095,-535.59,0.00023781,2]
[340521212,1729414233104,-429.92,0.00023781,2]
[340521213,1729414233114,-359.47,0.00023781,2]
[340521214,1729414233123,-150.0,0.00023781,2]
[340521215,1729414233132,-150.0,0.00023781,2]
[340521216,1729414233141,-150.0,0.00023781,2]
[340521217,1729414233151,-535.59,0.00023781,2]
[340521218,1729414233160,-150.0,0.00023781,2]
[340521219,1729414233169,-150.0,0.00023781,2]
[340521220,1729414233179,-150.0,0.00023781,2]
[340521221,1729414233188,-150.0,0.00023781,2]
[340521222,1729414233197,-429.92,0.00023781,2]
[340521223,1729414233206,-359.47,0.00023781,2]
[340521224,1729414233216,-429.35,0.00023781,2]
[340521225,1729414233225,-534.69,0.00023781,2]
[340521226,1729414233235,-150.0,0.00023781,2]
[340521227,1729414233244,-150.0,0.00023781,2]
[340521228,1729414233253,-150.0,0.00023781,2]
[340521229,1729414233262,-429.92,0.00023781,2]
[340521230,1729414233271,-150.0,0.00023781,2]
[340521231,1729414233280,-150.0,0.00023781,2]
[340521232,1729414233290,-150.0,0.00023781,2]
[340521233,1729414233299,-278.94,0.00023781,2]
[340521234,1729414233307,-680.0,0.00023849,2]
[340521235,1729414233317,-2926.212,0.000245,2]
[340521236,1729414233326,-178.24205391,0.000245,2]
[340521237,1729414233335,-163.39048885,0.000245,2]
[340521238,1729414233345,-301.41915111,0.000245,2]
[340521239,1729414233354,-1155.45033896,0.000245,2]
[340521240,1729414233363,-320.0,0.00024556,2]
[340521241,1729414233377,-151.50820012,0.00024573,2]
[340521242,1729414233388,-241.16,0.00024584,3]
[340521243,1729414233397,-723.49,0.00024584,3]
[340521244,1729414233407,-672.500002,0.00024591,21]
[340521245,1729414233416,-1480.91039613,0.00024593,2]
[340521246,1729414233425,-11074.68711337,0.00024594,2]
[340521247,1729414233462,-3538.57548688,0.00024594,2]
[340521248,1729414233648,-476.09994262,0.00024594,2]
[340521249,1729414233660,-63107.67202663,0.00024594,2]
[340521250,1729414233671,-1740.4410626,0.00024594,2]
[340521251,1729414233695,-12532.0229131,0.00024594,2]
[340521252,1729414233720,-4326.584034,0.00024595,2]
[340521253,1729414233748,-3097.39207889,0.00024597,4]
[340521254,1729414233786,-3935.26072072,0.00024597,4]
[340521255,1729414233820,-489.72762992,0.00024599,2]
[340521256,1729414233854,-166.663,0.00024599,7]
[340521257,1729414233864,-414.137,0.00024599,7]
[340521258,1729414233874,-508.0,0.000246,2]
[340521259,1729414233883,-131418.21164937,0.000246,5]
[340521260,1729414233895,-1438.68397903,0.000246,5]
[340521261,1729414233915,-2725.31554089,0.000246,5]
[340521262,1729414238399,-580.5753858,0.00024594,2]
[340521264,1729414238410,-1268.44224365,0.000246,5]
[340521267,1729414238421,-6086.3676762,0.000246,5]
[340521268,1729414238433,-1275.15327242,0.000246,5]
[340521269,1729414238455,-300.0,0.000246,5]
[340521270,1729414238466,-21760.45863702,0.000246,5]
[340521271,1729414238510,-349.87799986,0.000246,5]
[340521272,1729414238568,-772.17153192,0.000246,5]
[340521273,1729414238580,-40750.444,0.000246,5]
[340521274,1729414238594,-8355.461751,0.000246,5]
[340521275,1729414238606,-37616.033428,0.000246,5]
[340521276,1729414238618,-3425.3413971,0.000246,5]
[340521283,1729414240340,-33250.27322222,0.000246,5]
[340521284,1729414240451,-679.45,0.000246,5]
[340521285,1729414240463,-261388.33186743,0.000246,5]
[340521286,1729414240565,-3386.00621904,0.000246,5]
[340521287,1729414240577,-575.92171,0.000246,5]
[340521288,1729414240589,-5966.59176036,0.000246,5]
[340521289,1729414240602,-1710.19466749,0.000246,5]
[340521298,1729414243362,-170.5365547,0.000245,2]
[340521299,1729414243372,-130475.60869937,0.000246,5]
[340521300,1729414243385,-25297.47373657,0.000246,5]
[340521301,1729414243396,-5977.54511416,0.000246,5]
[340521302,1729414243419,-4477.65019019,0.000246,5]
[340521303,1729414243475,-421.310675,0.00024471,2]
[340521304,1729414243485,-346.466825,0.000246,5]
[340521305,1729414243533,-374.72962927,0.000246,5]
[340521306,1729414243544,-1498.48060342,0.000246,5]
[340521307,1729414243556,-1280.14,0.000246,5]
[340521308,1729414243590,-12234.3362,0.000246,5]
[340521309,1729414243650,-977.39069926,0.000246,5]
[340521310,1729414243661,-927.77,0.000246,5]
[340521311,1729414243672,-3563.9999998,0.000246,5]
[340521312,1729414243683,-14405.75438329,0.000246,5]
[340521313,1729414243693,-1897.54753777,0.000246,5]
[340521314,1729414243705,-431.39000013,0.000246,5]
[340521315,1729414243716,-599.736125,0.000246,5]
[340521316,1729414243726,-655.492865,0.000246,5]
[340521331,1729414246399,-756.36,0.00023644,2]
[340521332,1729414246408,-150.0,0.00023781,2]
[340521333,1729414246417,-207.34970627,0.00024599,2]
[340521334,1729414246427,-747.88504973,0.000246,5]
[340521335,1729414246456,-404.48230813,0.000246,5]
[340521336,1729414246467,-13233.98468939,0.000246,5]
[340521337,1729414246516,-3569.46687015,0.000246,5]
[340521338,1729414246527,-26046.89777595,0.000246,5]
[340521339,1729414246633,-1846.3874822,0.000246,5]
[340521340,1729414246650,-1455.39500522,0.000246,5]
[340521341,1729414246662,-6241.5,0.000246,5]
[340521342,1729414345959,4062.18540222,0.0001,14]
[340521343,1729414859133,486.87,0.00026652,120]
[340521344,1729415287201,104258.13090589,0.00027,60]
[340521349,1729415431467,-150.0,0.00014887,2]
[340521350,1729415431477,-172.32534949,0.000149,2]
[340521351,1729415431487,-157.77333641,0.00015,2]
[340521352,1729415431521,-558.22666359,0.00015,2]
[340521353,1729415431530,-148.85065306,0.00015,2]
[340521354,1729415431541,-629.99914214,0.00015,2]
[340521355,1729415431552,-393.9067626,0.00015,2]
[340521356,1729415431579,-1111.2434422,0.00015,2]
[340521357,1729415431589,-150.0,0.000167,2]
[340521358,1729415431598,-491.34,0.00017541,2]
[340521359,1729415431607,-200.36,0.00019295,2]
[340521360,1729415431616,-300.0,0.00019298,2]
[340521361,1729415431625,-3288.75,0.00019337,2]
[340521362,1729415431634,-483.56,0.00019349,2]
[340521363,1729415431643,-500.0,0.00019349,2]
[340521364,1729415431653,-5493.58,0.00019349,2]
[340521365,1729415431662,-250.0,0.00019378,2]
[340521366,1729415431671,-200.0,0.00019434,2]
[340521367,1729415431680,-816.93250539,0.00019556,2]
[340521368,1729415431689,-491.34,0.00019805,2]
[340521369,1729415431698,-2751.0,0.00019829,2]
[340521370,1729415431708,-192.0,0.00019947,2]
[340521371,1729415431717,-2000.0,0.0002,2]
[340521372,1729415431726,-2000.0,0.0002001,2]
[340521373,1729415431735,-3325.92921,0.0002002,2]
[340521374,1729415431745,-250.0,0.0002005,2]
[340521375,1729415431754,-436.34,0.00020084,2]
[340521376,1729415431763,-250.0,0.00020168,2]
[340521377,1729415431772,-292.77,0.000203,7]
[340521378,1729415431780,-405.0,0.000203,2]
[340521379,1729415431791,-462.873,0.000203,2]
[340521380,1729415431800,-500.0,0.00020599,2]
[340521381,1729415431809,-500.0,0.00020599,2]
[340521382,1729415431818,-500.0,0.00020599,2]
[340521383,1729415431828,-500.0,0.00020599,2]
[340521384,1729415431837,-474.89702171,0.00020599,2]
[340521385,1729415431847,-420.0,0.00021028,2]
[340521386,1729415431856,-436.34,0.00021088,2]
[340521389,1729415431866,-486.87,0.00021321,2]
[340521390,1729415431875,-462.873,0.00021366,2]
[340521391,1729415431885,-73873.83167658,0.000217,2]
[340521392,1729415431897,-371.6925449,0.000217,2]
[340521393,1729415431908,-1751.15549722,0.000217,2]
[340521394,1729415431919,-13790.59481179,0.000217,2]
[340521395,1729415431948,-1929.0,0.000217,2]
[340521404,1729415437580,-274.98855797,0.00021699,2]
[340521406,1729415437589,-804.02810191,0.000217,2]
[340521409,1729415437600,-998.13979976,0.000217,2]
[340521411,1729415437636,-16921.33856982,0.000217,2]
[340521412,1729415437800,-85860.21899802,0.000217,2]
[340521413,1729415437811,-3504.38,0.00021757,2]
[340521414,1729415437820,-15388.69,0.00021757,2]
[340521415,1729415437831,-29999.99,0.00021757,2]
[340521416,1729415437839,-17526.48759625,0.00021817,2]
[340521417,1729415437848,-482.32,0.0002189,3]
[340521418,1729415437857,-2500.0,0.00021917,2]
[340521419,1729415437867,-163.39048885,0.00021965,2]
[340521420,1729415437877,-491.34,0.00022068,2]
[340521421,1729415437888,-436.34,0.00022092,2]
[340521422,1729415437898,-17526.48759624,0.0002216,2]
[340521423,1729415437908,-222.47,0.00022214,2]
[340521424,1729415437917,-11520.0,0.000223,3]
[340521425,1729415437929,-192.0,0.00022441,2]
[340521426,1729415437938,-160.130366,0.000225,3]
[340521427,1729415437950,-203.320471,0.000225,3]
[340521428,1729415437959,-160.130366,0.000225,8]
[340521429,1729415437970,-17526.48759624,0.00022502,2]
[340521430,1729415437981,-462.873,0.00022544,2]
[340521431,1729415437991,-756.36,0.00022685,2]
[340521432,1729415438002,-756.36,0.00022685,2]
[340521433,1729415438012,-17526.48759624,0.00022845,2]
[340521434,1729415438022,-11520.0,0.000229,5]
[340521435,1729415438033,-301.0,0.00022914,2]
[340521436,1729415438045,-150.0,0.00022959,2]
[340521437,1729415438055,-436.34,0.00023096,2]
[340521438,1729415438065,-808.0,0.00023113,2]
[340521439,1729415438076,-17526.48759624,0.00023187,2]
[340521440,1729415438085,-167.0,0.00023209,2]
[340521441,1729415438094,-150.41,0.00023248,2]
[340521442,1729415438104,-3307.44527386,0.000233,2]
[340521443,1729415438113,-163.39048885,0.00023398,2]
[340521444,1729415438123,-17526.48759624,0.0002353,2]
[340521445,1729415438132,-756.36,0.00023641,2]
[340521447,1729415438142,-150.0,0.00023778,2]
[340521448,1729415438151,-150.0,0.00023778,2]
[340521450,1729415438160,-187.0,0.00023778,2]
[340521452,1729415438170,-203.19,0.00023781,2]
[340521453,1729415438180,-150.0,0.00023781,2]
[340521455,1729415438192,-150.0,0.00023781,2]
[340521457,1729415438202,-244.92,0.00023781,2]
[340521459,1729415438211,-150.0,0.00023781,2]
[340521460,1729415438221,-150.0,0.00023781,2]
[340521462,1729415438232,-150.0,0.00023781,2]
[340521464,1729415438243,-150.0,0.00023781,2]
[340521465,1729415438252,-462.873,0.00023848,2]
[340521467,1729415438261,-17526.48759624,0.00023872,2]
[340521469,1729415438270,-167.0,0.00023975,2]
[340521471,1729415438279,-486.87,0.00023986,2]
[340521472,1729415438289,-4610.69184262,0.00024,2]
[340521474,1729415438299,-424.46,0.00024055,2]
[340521475,1729415438308,-424.46,0.00024055,2]
[340521476,1729415438317,-756.36,0.00024055,2]
[340521477,1729415438328,-424.46,0.00024055,2]
[340521478,1729415438337,-756.36,0.00024055,2]
[340521479,1729415438347,-756.36,0.00024055,2]
[340521480,1729415438357,-426.48,0.00024055,2]
[340521482,1729415438366,-756.36,0.00024055,2]
[340521484,1729415438374,-756.36,0.00024055,2]
[340521485,1729415438383,-1000.0,0.000241,2]
[340521486,1729415438392,-436.34,0.000241,2]
[340521487,1729415438401,-429.92,0.00024192,2]
[340521488,1729415438411,-150.0,0.00024192,2]
[340521489,1729415438420,-359.47,0.00024192,2]
[340521490,1729415438429,-150.0,0.00024192,2]
[340521491,1729415438438,-150.0,0.00024192,2]
[340521492,1729415438447,-429.92,0.00024192,2]
[340521493,1729415438456,-150.0,0.00024192,2]
[340521494,1729415438465,-359.47,0.00024192,2]
[340521495,1729415438474,-150.0,0.00024192,2]
[340521496,1729415438484,-150.0,0.00024192,2]
[340521497,1729415438493,-150.0,0.00024192,2]
[340521498,1729415438502,-150.0,0.00024192,2]
[340521499,1729415438511,-429.92,0.00024192,2]
[340521500,1729415438520,-257.78,0.00024192,2]
[340521501,1729415438529,-359.47,0.00024192,2]
[340521502,1729415438538,-359.11,0.00024192,2]
[340521503,1729415438548,-150.0,0.00024192,2]
[340521504,1729415438557,-150.0,0.00024192,2]
[340521505,1729415438566,-429.44,0.00024192,2]
[340521506,1729415438575,-150.0,0.00024192,2]
[340521507,1729415438584,-150.0,0.00024192,2]
[340521508,1729415438593,-17526.48759624,0.00024215,2]
[340521509,1729415438603,-491.34,0.00024332,2]
[340521510,1729415438613,-405.19345943,0.00024339,2]
[340521511,1729415438625,-3000.0,0.00024476,2]
[340521512,1729415438636,-3000.0,0.00024485,2]
[340521513,1729415438646,-1148.14,0.00024493,2]
[340521514,1729415438655,-4020.8032,0.00024498,2]
[340521515,1729415438664,-2500.0,0.00024499,2]
[340521516,1729415438673,-227.46066849,0.000245,2]
[340521517,1729415438682,-5323.1125,0.000245,2]
[340521518,1729415438691,-200.94610074,0.000245,2]
[340521519,1729415438700,-964.11795647,0.000245,2]
[340521520,1729415438709,-5423.38022683,0.000245,2]
[340521521,1729415438718,-2999.98,0.00024516,2]
[340521522,1729415438727,-3000.0,0.00024533,2]
[340521523,1729415438735,-3000.0,0.00024536,2]
[340521524,1729415438744,-419.23233118,0.00024556,2]
[340521525,1729415438753,-17526.48759624,0.00024557,2]
[340521526,1729415438763,-4361.45126365,0.0002458,5]
[340521527,1729415438772,-403.941,0.00024594,7]
[340521528,1729415438781,-166.663,0.00024594,7]
[340521529,1729415438790,-95945.3611878,0.00024598,2]
[340521530,1729415438799,-150.01,0.00024599,2]
[340521531,1729415438808,-375.0,0.00024599,2]
[340521532,1729415438817,-2278.0,0.00024599,2]
[340521533,1729415438827,-500.0,0.00024599,2]
[340521534,1729415438836,-5517.8382905,0.00024599,2]
[340521535,1729415438845,-44294.72529991,0.00024599,2]
[340521536,1729415438960,-5305.36144738,0.00024599,2]
[340521537,1729415438971,-772.17153192,0.00024599,2]
[340521538,1729415438985,-34087.05874299,0.00024599,2]
[340521539,1729415438994,-6663.38525701,0.00024599,2]
[340521540,1729415439004,-8355.461751,0.00024599,2]
[340521541,1729415439015,-3760.47534749,0.00024599,2]
[340521542,1729415439025,-2500.0,0.00024599,2]
[340521543,1729415439034,-1226.33324839,0.00024599,2]
[340521544,1729415439044,-4248.0558323,0.00024599,2]
[340521545,1729415439053,-150.82311812,0.00024599,2]
[340521546,1729415439064,-507.0,0.000246,2]
[340521547,1729415439073,-25223.3458817,0.000246,5]
[340521548,1729415439092,-3064.30730718,0.000246,5]
[340521561,1729415439607,-690.162,0.000246,5]
[340521562,1729415439619,-996.56768948,0.000246,5]
[340521563,1729415439630,-20276.87249774,0.000246,5]
[340521564,1729415439854,-252.3849354,0.000246,5]
[340521565,1729415439866,-553360.71121926,0.000246,5]
[340521566,1729415439877,-32873.03109,0.000246,5]
[340521567,1729415439896,-552.17048059,0.000246,5]
[340521568,1729415439908,-4794.80000004,0.000246,5]
[340521569,1729415439923,-2109.62849305,0.000246,5]
[340521570,1729415439935,-580.62479608,0.000246,5]
[340521576,1729415442618,-3178.22725125,0.000246,5]
[340521577,1729415442657,-10774.15026772,0.000246,5]
[340521581,1729415445612,-3863584.04419944,0.000246,5]
[340521582,1729415445622,-150.0,0.000246,2]
[340521583,1729415445631,-3211.99505154,0.000246,30]
[340521584,1729415445640,-424.0,0.000246,8]
[340521585,1729415445650,-2000.0,0.000246,2]
[340521586,1729415445659,-200.0,0.000246,2]
[340521587,1729415445668,-500.0,0.000246,2]
[340521588,1729415445677,-500.0,0.000246,2]
[340521589,1729415445687,-500.0,0.000246,2]
[340521590,1729415445696,-500.0,0.000246,2]
[340521591,1729415445705,-207.98004958,0.000246,2]
[340521592,1729415445716,-2278.0,0.000246,2]
[340521593,1729415445727,-500.0,0.000246,2]
[340521594,1729415445736,-34878.5979149,0.00024601,2]
[340521595,1729415445747,-14493.3020824,0.00024601,2]
[340521596,1729415445758,-10275.3229117,0.00024601,2]
[340521597,1729415445768,-150.41,0.00024617,2]
[340521598,1729415445778,-152.0,0.00024644,3]
[340521599,1729415445788,-500.0,0.00024658,7]
[340521600,1729415445926,-246.45,0.00024658,4]
[340521601,1729415445958,-1000.0,0.000247,2]
[340521602,1729415445968,-200.94610074,0.000247,2]
[340521603,1729415445978,-964.11795646,0.000247,2]
[340521604,1729415445988,-5423.38022683,0.000247,2]
[340521605,1729415446000,-150.0,0.00024739,2]
[340521606,1729415446010,-167.0,0.00024741,2]
[340521607,1729415446019,-150.0,0.00024742,2]
[340521608,1729415446030,-153.56330623,0.00024744,2]
[340521609,1729415446039,-1083.33327018,0.00024747,2]
[340521610,1729415446049,-150.0,0.0002475,2]
[340521611,1729415446059,-150.0,0.00024753,2]
[340521612,1729415446069,-150.0,0.00024754,2]
[340521613,1729415446079,-150.0,0.0002476,2]
[340521614,1729415446088,-150.0,0.00024767,2]
[340521615,1729415446097,-150.0,0.00024768,2]
[340521616,1729415446106,-150.0,0.0002477,2]
[340521617,1729415446115,-5800.0,0.00024772,2]
[340521618,1729415446124,-5800.0,0.00024781,2]
[340521619,1729415446133,-150.0,0.00024781,2]
[340521620,1729415446142,-812.0,0.00024785,2]
[340521621,1729415446151,-561.541,0.00024785,2]
[340521622,1729415446160,-450.418,0.00024785,2]
[340521623,1729415446169,-678.107,0.00024785,2]
[340521624,1729415446178,-556.609,0.00024785,2]
[340521625,1729415446188,-2413.817,0.00024785,2]
[340521626,1729415446197,-809.0,0.00024785,2]
[340521627,1729415446205,-13539.0,0.00024785,2]
[340521628,1729415446214,-150.803,0.00024785,2]
[340521629,1729415446223,-1084.0,0.00024785,2]
[340521630,1729415446232,-150.0,0.00024786,2]
[340521631,1729415446242,-5800.0,0.0002479,2]
[340521632,1729415446251,-150.0,0.00024794,2]
[340521633,1729415446260,-150.0,0.00024794,2]
[340521634,1729415446269,-150.0,0.00024797,2]
[340521635,1729415446278,-150.0,0.00024797,2]
[340521636,1729415446288,-1500.0,0.00024797,2]
[340521637,1729415446297,-5800.0,0.00024798,2]
[340521638,1729415446306,-1262.73138185,0.00024798,2]
[340521639,1729415446316,-239501.0,0.00024799,2]
[340521640,1729415446326,-151.0,0.00024799,7]
[340521641,1729415446336,-151.0,0.00024799,7]
[340521642,1729415446345,-152.874578,0.00024799,7]
[340521643,1729415446356,-151.0,0.00024799,7]
[340521644,1729415446366,-151.0,0.00024799,7]
[340521645,1729415446375,-151.0,0.00024799,7]
[340521646,1729415446384,-151.0,0.00024799,7]
[340521647,1729415446393,-158.173142,0.00024799,7]
[340521648,1729415446402,-151.0,0.00024799,7]
[340521649,1729415446413,-151.0,0.00024799,7]
[340521650,1729415446422,-151.0,0.00024799,7]
[340521651,1729415446431,-151.0,0.00024799,7]
[340521652,1729415446440,-151.0,0.00024799,7]
[340521653,1729415446450,-151.0,0.00024799,7]
[340521654,1729415446459,-151.0,0.00024799,7]
[340521655,1729415446468,-153.341769,0.00024799,7]
[340521656,1729415446477,-151.0,0.00024799,7]
[340521657,1729415446486,-151.0,0.00024799,7]
[340521658,1729415446495,-151.0,0.00024799,7]
[340521659,1729415446504,-151.0,0.00024799,7]
[340521660,1729415446513,-186.71453,0.00024799,7]
[340521661,1729415446523,-151.0,0.00024799,7]
[340521662,1729415446532,-186.71453,0.00024799,7]
[340521663,1729415446541,-278.185244,0.00024799,7]
[340521664,1729415446550,-151.450209,0.00024799,7]
[340521665,1729415446559,-152.000336,0.00024799,7]
[340521666,1729415446568,-151.0,0.00024799,7]
[340521667,1729415446577,-2279.94462142,0.000248,2]
[340521668,1729415446587,-498.07985857,0.00024801,2]
[340521669,1729415446596,-150.0,0.00024806,2]
[340521670,1729415446605,-150.0,0.00024806,2]
[340521671,1729415446614,-5800.0,0.00024807,2]
[340521672,1729415446623,-150.0,0.00024813,2]
[340521673,1729415446632,-5800.0,0.00024815,2]
[340521674,1729415446641,-1500.0,0.00024816,2]
[340521675,1729415446650,-150.0,0.00024822,2]
[340521676,1729415446659,-150.0,0.00024822,2]
[340521677,1729415446668,-5800.0,0.00024823,2]
[340521678,1729415446677,-150.0,0.00024826,2]
[340521679,1729415446686,-150.0,0.00024826,2]
[340521680,1729415446695,-163.39048885,0.00024831,2]
[340521681,1729415446704,-5800.0,0.00024832,2]
[340521682,1729415446713,-150.0,0.00024834,2]
[340521683,1729415446722,-150.0,0.00024834,2]
[340521684,1729415446731,-150.0,0.00024836,2]
[340521685,1729415446740,-500.0,0.0002484,30]
[340521686,1729415446749,-1507.83217663,0.0002484,2]
[340521687,1729415446758,-5800.0,0.00024841,2]
[340521688,1729415446767,-150.0,0.00024843,2]
[340521689,1729415446776,-150.0,0.00024846,2]
[340521690,1729415446785,-150.0,0.00024848,2]
[340521691,1729415446794,-5800.0,0.00024849,2]
[340521692,1729415446803,-150.0,0.00024849,2]
[340521693,1729415446812,-150.0,0.0002485,2]
[340521694,1729415446821,-150.0,0.00024852,2]
[340521695,1729415446830,-150.0,0.00024852,2]
[340521696,1729415446839,-150.0,0.00024853,2]
[340521697,1729415446848,-5800.0,0.00024857,2]
[340521698,1729415446857,-150.0,0.00024861,2]
[340521699,1729415446867,-5800.0,0.00024866,2]
[340521700,1729415446876,-150.0,0.00024868,2]
[340521701,1729415446885,-500.0,0.00024873,2]
[340521702,1729415446894,-641.81577224,0.00024873,2]
[340521703,1729415446903,-611.44541806,0.00024873,2]
[340521704,1729415446912,-500.0,0.00024873,2]
[340521705,1729415446922,-5800.0,0.00024875,2]
[340521706,1729415446931,-150.0,0.00024876,2]
[340521707,1729415446940,-151.41,0.00024877,30]
[340521708,1729415446950,-150.0,0.00024878,2]
[340521709,1729415446958,-150.0,0.0002488,2]
[340521710,1729415446968,-150.0,0.00024881,2]
[340521711,1729415446977,-150.0,0.00024882,2]
[340521712,1729415446989,-5800.0,0.00024883,2]
[340521713,1729415446998,-150.0,0.00024887,2]
[340521714,1729415447007,-150.0,0.00024887,2]
[340521715,1729415447016,-5800.0,0.00024892,2]
[340521716,1729415447025,-150.0,0.00024896,2]
[340521717,1729415447034,-150.0,0.00024898,2]
[340521718,1729415447044,-150.0,0.00024899,2]
[340521719,1729415447053,-500.0,0.000249,2]
[340521720,1729415447063,-500.0,0.000249,2]
[340521721,1729415447073,-500.0,0.000249,2]
[340521722,1729415447083,-500.0,0.000249,2]
[340521723,1729415447092,-971.31,0.000249,2]
[340521724,1729415447102,-2278.0,0.000249,2]
[340521725,1729415447111,-500.23,0.000249,2]
[340521726,1729415447120,-2230.5148,0.000249,2]
[340521727,1729415447130,-1050.79785634,0.000249,2]
[340521728,1729415447139,-5800.0,0.000249,2]
[340521729,1729415447148,-2000.0,0.000249,2]
[340521730,1729415447159,-2000.0,0.000249,2]
[340521731,1729415447168,-2000.0,0.000249,2]
[340521732,1729415447179,-2000.0,0.000249,2]
[340521733,1729415447189,-2000.0,0.000249,2]
[340521734,1729415447199,-150.0,0.000249,2]
[340521735,1729415447209,-1379.65509,0.000249,2]
[340521736,1729415447219,-952.0975,0.000249,2]
[340521737,1729415447231,-952.0975,0.000249,2]
[340521738,1729415447243,-200.94610074,0.000249,2]
[340521739,1729415447253,-964.11795646,0.000249,2]
[340521740,1729415447262,-5423.38022683,0.000249,2]
[340521741,1729415447271,-17526.48759624,0.000249,2]
[340521742,1729415447281,-150.0,0.00024902,2]
[340521743,1729415447290,-150.0,0.00024904,2]
[340521744,1729415447299,-150.0,0.00024908,2]
[340521745,1729415447308,-150.0,0.00024911,2]
[340521746,1729415447318,-151.0,0.00024914,7]
[340521747,1729415447327,-151.0,0.00024914,7]
[340521748,1729415447338,-151.0,0.00024914,7]
[340521749,1729415447347,-151.0,0.00024914,7]
[340521750,1729415447358,-151.0,0.00024914,7]
[340521751,1729415447368,-151.0,0.00024914,7]
[340521752,1729415447379,-151.0,0.00024914,7]
[340521753,1729415447389,-198.622782,0.00024914,7]
[340521754,1729415447400,-151.0,0.00024914,7]
[340521755,1729415447411,-151.0,0.00024914,7]
[340521756,1729415447421,-151.0,0.00024914,7]
[340521757,1729415447430,-151.0,0.00024914,7]
[340521758,1729415447439,-151.0,0.00024914,7]
[340521759,1729415447448,-151.0,0.00024914,7]
[340521760,1729415447458,-153.34457,0.00024914,7]
[340521761,1729415447467,-151.0,0.00024914,7]
[340521762,1729415447476,-151.0,0.00024914,7]
[340521763,1729415447485,-151.0,0.00024914,7]
[340521764,1729415447495,-151.0,0.00024914,7]
[340521765,1729415447504,-150.0,0.00024914,2]
[340521766,1729415447514,-150.0,0.00024914,2]
[340521767,1729415447523,-4573.3661987,0.00024914,2]
[340521768,1729415447533,-3628.8941068,0.00024914,2]
[340521769,1729415447542,-2684.422015,0.00024914,2]
[340521770,1729415447552,-1739.9499231,0.00024914,2]
[340521771,1729415447561,-795.4778313,0.00024914,2]
[340521772,1729415447570,-151.0,0.00024914,7]
[340521773,1729415447580,-151.0,0.00024914,7]
[340521774,1729415447590,-70046.9932,0.00024914,2]
[340521775,1729415447599,-55634.6693779,0.00024914,2]
[340521776,1729415447608,-41222.3455558,0.00024914,2]
[340521777,1729415447617,-26810.0217336,0.00024914,2]
[340521778,1729415447626,-12397.6979115,0.00024914,2]
[340521779,1729415447635,-15574.7774398,0.00024914,2]
[340521780,1729415447644,-12370.2325241,0.00024914,2]
[340521781,1729415447653,-9165.6876084,0.00024914,2]
[340521782,1729415447662,-5961.1426926,0.00024914,2]
[340521783,1729415447671,-2756.5977769,0.00024914,2]
[340521784,1729415447681,-186.71453,0.00024914,7]
[340521785,1729415447690,-186.71453,0.00024914,7]
[340521786,1729415447699,-190.801914,0.00024914,7]
[340521787,1729415447708,-186.71453,0.00024914,7]
[340521788,1729415447717,-186.71453,0.00024914,7]
[340521789,1729415447726,-3523.1582315,0.00024914,2]
[340521790,1729415447735,-2798.2606308,0.00024914,2]
[340521791,1729415447744,-2073.36303,0.00024914,2]